fUSD/lending_fUSD_20250926
["ID","MTS","AMOUNT","RATE_DAILY","PERIOD"]
[387780941,1758852632479,-165.644,0.00019946,2]
[387780943,1758852632490,-4504.796,0.00019946,2]
[387780945,1758852632499,-500.91275421,0.00019973,2]
[387780947,1758852632509,-505.39378326,0.00019973,2]
[387780949,1758852632518,-500.0,0.00019973,2]
[387780951,1758852632527,-503.46337136,0.00019973,2]
[387780953,1758852632537,-500.0,0.00019973,2]
[387780955,1758852632548,-500.0,0.00019973,2]
[387780956,1758852632557,-173.77,0.0001999,2]
[387780957,1758852632566,-173.77,0.0001999,2]
[387780959,1758852632577,-173.77,0.0001999,2]
[387780960,1758852632586,-173.77,0.0001999,2]
[387780961,1758852632595,-193.33285132,0.0001999,2]
[387780962,1758852632605,-151.0,0.00019997,2]
[387780963,1758852632615,-151.0,0.00019997,2]
[387780964,1758852632627,-151.0,0.00019997,2]
[387780965,1758852632637,-151.0,0.00019997,2]
[387780966,1758852632647,-150.0,0.00019998,2]
[387780967,1758852632657,-152.63860752,0.00019998,2]
[387780968,1758852632667,-150.0,0.00019998,2]
[387780969,1758852632677,-500.0,0.00019998,2]
[387780970,1758852632686,-500.0,0.00019998,2]
[387780971,1758852632696,-1997.41406239,0.00019998,2]
[387780972,1758852632708,-1790.58593761,0.00019998,2]
[387780973,1758852632718,-150.0,0.00019998,2]
[387780974,1758852632727,-500.0,0.00019998,2]
[387780975,1758852632736,-500.0,0.00019998,2]
[387780976,1758852632746,-150.0,0.00019998,2]
[387780977,1758852632757,-150.0,0.00019998,2]
[387780978,1758852632768,-500.0,0.00019998,2]
[387780979,1758852632779,-151.47728148,0.00019998,2]
[387780980,1758852632789,-151.9654622,0.00019998,2]
[387780981,1758852632799,-150.0,0.00019998,2]
[387780982,1758852632809,-150.0,0.00019998,2]
[387780983,1758852632818,-150.0,0.00019998,2]
[387780984,1758852632828,-150.0,0.00019998,2]
[387780985,1758852632838,-150.0,0.00019998,2]
[387780986,1758852632848,-150.0,0.00019998,2]
[387780987,1758852632857,-157.60297323,0.00019998,2]
[387780988,1758852632869,-362.10216355,0.00019999,2]
[387780989,1758852632878,-176.69448098,0.00019999,2]
[387780990,1758852632888,-500.0,0.00019999,2]
[387780991,1758852632898,-500.0,0.00019999,2]
[387780992,1758852632908,-500.0,0.00019999,2]
[387780993,1758852632918,-500.0,0.00019999,2]
[387780994,1758852632928,-500.0,0.00019999,2]
[387780995,1758852632938,-500.0,0.00019999,2]
[387780996,1758852632947,-500.0,0.00019999,2]
[387780997,1758852632957,-500.0,0.00019999,2]
[387780998,1758852632967,-500.0,0.00019999,2]
[387780999,1758852632976,-500.0,0.00019999,2]
[387781000,1758852632986,-202.3520634,0.00019999,2]
[387781001,1758852632995,-500.0,0.00019999,2]
[387781002,1758852633005,-500.0,0.00019999,2]
[387781003,1758852633014,-500.0,0.00019999,2]
[387781004,1758852633023,-500.0,0.00019999,2]
[387781005,1758852633033,-500.0,0.00019999,2]
[387781006,1758852633042,-500.0,0.00019999,2]
[387781007,1758852633053,-500.0,0.00019999,2]
[387781008,1758852633063,-500.0,0.00019999,2]
[387781009,1758852633073,-500.0,0.00019999,2]
[387781010,1758852633083,-500.0,0.00019999,2]
[387781011,1758852633092,-500.0,0.00019999,2]
[387781012,1758852633102,-500.0,0.00019999,2]
[387781013,1758852633112,-500.0,0.00019999,2]
[387781014,1758852633123,-500.0,0.00019999,2]
[387781015,1758852633134,-209.585153,0.00019999,2]
[387781016,1758852633143,-500.0,0.00019999,2]
[387781017,1758852633153,-500.0,0.00019999,2]
[387781018,1758852633162,-500.0,0.00019999,2]
[387781019,1758852633172,-150.0,0.00019999,2]
[387781020,1758852633182,-150.0,0.00019999,2]
[387781021,1758852633193,-150.0,0.00019999,2]
[387781022,1758852633203,-151.11506741,0.00019999,2]
[387781023,1758852633213,-1000.0,0.00019999,2]
[387781024,1758852633223,-2592.11941714,0.0002,2]
[387781025,1758852633239,-725.60602438,0.0002,2]
[387781026,1758852638091,-1148.74132637,0.0002,2]
[387781085,1758852638908,-853.81792568,0.0002,2]
[387781087,1758852638919,-313.93125095,0.0002,2]
[387781089,1758852638930,-1109.69715008,0.0002,2]
[387781093,1758852638955,-1568.83503009,0.0002,2]
[387781095,1758852638966,-502.78556444,0.0002,2]
[387781097,1758852638977,-2813.21637597,0.0002,2]
[387781100,1758852638992,-1387.34462168,0.0002,2]
[387781102,1758852639007,-362.4494482,0.0002,2]
[387781138,1758852639927,-259.75918832,0.0002,2]
[387781140,1758852639939,-1473.93976747,0.0002,2]
[387781146,1758852639984,-962.32343158,0.00018839,2]
[387781148,1758852639995,-274.26881639,0.00018839,2]
[387781160,1758852640937,-156.5346826,0.00018839,2]
[387781161,1758852641272,-4274.84635093,0.00018839,2]
[387781162,1758852641282,-9576.56022431,0.0002,2]
[387781163,1758852641293,-659098.44428491,0.0002,2]
[387781164,1758852641304,-683.16,0.0002,2]
[387781165,1758852641315,-1135.6557055,0.0002,2]
[387781166,1758852641329,-276.5014284,0.0002,2]
[387781167,1758852641353,-4779.50896414,0.0002,2]
[387781170,1758852643268,-500.0,0.0002,2]
[387781171,1758852643395,-2144.71751746,0.0002,2]
[387781172,1758852643408,-83450.0,0.0002,2]
[387781193,1758852646037,-2124.91251447,0.0002,2]
[387781194,1758852646048,-2501.108,0.0002,2]
[387781195,1758852646059,-2719.118345,0.0002,2]
[387781196,1758852646090,-272.33000003,0.0002,2]
[387781197,1758852646102,-441.33697232,0.0002,2]
[387781198,1758852646144,-1667.96340004,0.0002,2]
[387781199,1758852646198,-991.58044,0.0002,2]
[387781200,1758852646210,-6146.33188818,0.0002,2]
[387781208,1758852764645,161.0,0.000185,3]
[387781209,1758852765580,161.0,0.000185,3]
[387781210,1758852782276,161.0,0.000301,120]
[387781211,1758852783330,161.0,0.000301,120]
[387781212,1758852823563,161.0,0.000301,120]
[387781213,1758852938258,84708.06099635,0.0003,120]
[387781214,1758852967967,3832.0,0.00030136,120]
[387781215,1758853061912,419.96901897,0.000301,120]
[387781216,1758853108976,153.24,9.658e-05,2]
[387781217,1758853109184,153.24,0.00010463,2]
[387781218,1758853109399,153.24,0.00011268,2]
[387781219,1758853109625,153.24,0.00012072,2]
[387781220,1758853109935,153.24,0.00012877,2]
[387781221,1758853110170,153.24,0.00013682,2]
[387781222,1758853110393,153.24,0.00014487,2]
[387781223,1758853110604,153.24,0.00015292,2]
[387781224,1758853110804,153.24,0.00016096,2]
[387781225,1758853111220,153.24,0.00016901,2]
[387781226,1758853111444,153.24,0.00017706,2]
[387781227,1758853111709,153.24,0.00018511,2]
[387781228,1758853211126,301.0,0.00030137,120]
[387781229,1758853287787,334.0,0.0003,120]
[387781230,1758853301700,300.0,0.0003,120]
[387781231,1758853504245,-513.58123901,0.0001858,2]
[387781232,1758853505982,-242.90121471,0.0001858,2]
[387781233,1758853509209,-172.77121705,0.0001858,2]
[387781234,1758853511411,-183.90996957,0.0001858,2]
[387781235,1758853511747,-56.77517981,0.0001858,2]
[387781236,1758853551337,-500.73316134,0.00018976,2]
[387781237,1758853558494,-500.0,0.00018976,2]
[387781238,1758853564692,-302.64221565,0.00018976,2]
[387781239,1758853701591,-150.0,0.00018912,7]
[387781240,1758853705279,250.0,0.00015,2]
[387781261,1758853832435,-27.71029101,0.00018976,2]
[387781262,1758853832447,-666.0,0.00019072,3]
[387781263,1758853832460,-823.94737889,0.00019219,2]
[387781264,1758853832491,-178.61917877,0.00019219,2]
[387781265,1758853832501,-602.05873285,0.00019316,2]
[387781266,1758853832514,-504.85911064,0.00019316,2]
[387781267,1758853832656,-492.5741067,0.00019316,2]
[387781268,1758853832669,-153.24,0.00019316,2]
[387781269,1758853832680,-165.07,0.00019316,2]
[387781270,1758853832690,-1072.64006778,0.00019316,2]
[387781271,1758853832699,-2210.13375708,0.00019399,2]
[387781272,1758853832709,-170.65,0.00019584,2]
[387781273,1758853832719,-1200.0,0.00019598,2]
[387781274,1758853832729,-26.19206844,0.000196,2]
[387781275,1758853832740,-973.80793156,0.000196,2]
[387781276,1758853832750,-300.0,0.000196,7]
[387781277,1758853832760,-293.0,0.00019699,2]
[387781278,1758853832770,-700.0,0.000197,7]
[387781279,1758853832780,-806.0274445,0.000198,7]
[387781280,1758853832802,-293.9725555,0.000198,7]
[387781281,1758853832811,-123.17720992,0.000198,2]
[387781288,1758853838301,-1286.13519908,0.000198,2]
[387781289,1758853838317,-564.509351,0.000198,2]
[387781290,1758853838327,-415.67243176,0.00019836,2]
[387781291,1758853838337,-391.08568083,0.00019841,2]
[387781292,1758853838354,-400.99999879,0.00019841,2]
[387781293,1758853838366,-748.04988412,0.00019841,2]
[387781294,1758853838376,-163.74046144,0.00019847,2]
[387781295,1758853838386,-1354.91615827,0.00019847,2]
[387781296,1758853838395,-163.74046144,0.00019849,2]
[387781297,1758853838405,-14071.05802639,0.00019853,2]
[387781298,1758853838415,-153.95334527,0.00019853,2]
[387781299,1758853838425,-1354.91615827,0.00019856,2]
[387781300,1758853838435,-565.04251167,0.00019856,2]
[387781301,1758853838444,-319.8457703,0.00019857,2]
[387781302,1758853838456,-220.75150974,0.00019857,2]
[387781303,1758853838466,-137.5833419,0.00019859,2]
[387781304,1758853838478,-1402.55222184,0.00019859,2]
[387781305,1758853838488,-515.09,0.00019861,2]
[387781306,1758853838497,-163.74046144,0.00019862,2]
[387781307,1758853838509,-478.32931184,0.00019864,2]
[387781308,1758853838519,-565.04251167,0.00019864,2]
[387781309,1758853838529,-3093.24242553,0.00019865,2]
[387781310,1758853838541,-488.66430191,0.00019865,2]
[387781311,1758853838561,-385.36424049,0.00019865,2]
[387781312,1758853840159,-531.83801353,0.00019865,2]
[387781313,1758853840217,-9571.94904493,0.00019865,2]
[387781314,1758853840227,-540.59728004,0.00019867,2]
[387781315,1758853840237,-1540.13556374,0.00019869,2]
[387781316,1758853840247,-565.04251167,0.00019871,2]
[387781317,1758853840257,-565.04251167,0.00019875,2]
[387781318,1758853840268,-3240.69396084,0.00019876,2]
[387781319,1758853840277,-153.95334527,0.00019876,2]
[387781320,1758853840289,-346.58479116,0.00019876,2]
[387781321,1758853840299,-153.95334527,0.00019878,2]
[387781322,1758853840310,-478.32931184,0.00019879,2]
[387781323,1758853840321,-3240.69396084,0.00019879,2]
[387781324,1758853840330,-346.58479116,0.0001988,2]
[387781325,1758853840340,-3240.69396084,0.00019881,2]
[387781326,1758853840349,-12971.65599646,0.00019881,2]
[387781327,1758853840359,-3240.69396084,0.00019884,2]
[387781328,1758853840368,-540.59728004,0.00019896,2]
[387781329,1758853840377,-153.95334527,0.00019896,2]
[387781330,1758853840387,-14071.05802639,0.00019899,2]
[387781331,1758853840397,-1354.91615827,0.00019899,2]
[387781332,1758853840407,-850.0,0.00019899,2]
[387781333,1758853840417,-4613.32229664,0.00019899,2]
[387781334,1758853840427,-1540.13556374,0.00019899,2]
[387781335,1758853840437,-9408.1948,0.000199,2]
[387781336,1758853840447,-1000.0,0.000199,2]
[387781337,1758853840457,-7038.2152,0.000199,2]
[387781338,1758853840467,-1102.1491,0.000199,2]
[387781339,1758853840476,-561.15237656,0.000199,2]
[387781340,1758853840486,-2500.0,0.000199,2]
[387781341,1758853840496,-1500.0,0.000199,7]
[387781342,1758853840505,-1973.82177,0.000199,2]
[387781343,1758853840515,-177.90169941,0.000199,2]
[387781344,1758853840525,-1322.316755,0.000199,2]
[387781345,1758853840535,-1000.0,0.000199,2]
[387781346,1758853840545,-15575.18966647,0.000199,2]
[387781347,1758853840555,-339.62511115,0.000199,2]
[387781348,1758853840565,-207.6831142,0.000199,3]
[387781349,1758853840576,-930.51863124,0.000199,2]
[387781350,1758853840586,-2522.35665294,0.000199,2]
[387781351,1758853840600,-2944.2549209,0.000199,2]
[387781352,1758853840610,-565.04251167,0.00019901,2]
[387781353,1758853840620,-270.29378608,0.00019904,2]
[387781354,1758853840630,-270.29378608,0.00019905,2]
[387781355,1758853840641,-153.95334527,0.00019907,2]
[387781356,1758853840652,-12971.65599646,0.00019908,2]
[387781358,1758853840662,-12971.65599646,0.00019914,2]
[387781360,1758853840673,-478.32931184,0.00019919,2]
[387781362,1758853840683,-270.29378608,0.0001992,2]
[387781364,1758853840692,-163.74046144,0.0001992,2]
[387781366,1758853840702,-12971.65599646,0.00019928,2]
[387781368,1758853840712,-12971.65599646,0.00019929,2]
[387781370,1758853840721,-14071.05802639,0.0001993,2]
[387781372,1758853840731,-565.04251167,0.00019933,2]
[387781374,1758853840740,-270.29378608,0.00019933,2]
[387781375,1758853840752,-1354.91615827,0.00019935,2]
[387781376,1758853840763,-346.58479116,0.00019941,2]
[387781377,1758853840773,-1540.13556374,0.00019941,2]
[387781378,1758853840784,-1354.91615827,0.00019943,2]
[387781379,1758853840795,-1354.91615827,0.00019944,2]
[387781380,1758853840806,-153.95334527,0.00019946,2]
[387781381,1758853840817,-153.95334527,0.00019946,2]
[387781382,1758853840826,-165.644,0.00019946,2]
[387781383,1758853840836,-4730.036,0.00019946,2]
[387781384,1758853840846,-540.59728004,0.00019947,2]
[387781385,1758853840856,-3240.69396084,0.0001995,2]
[387781386,1758853840867,-478.32931184,0.00019952,2]
[387781387,1758853840877,-565.04251167,0.00019952,2]
[387781388,1758853840887,-163.74046144,0.00019953,2]
[387781389,1758853840899,-14071.05802639,0.00019956,2]
[387781390,1758853840909,-540.59728004,0.00019956,2]
[387781391,1758853840919,-1354.91615827,0.00019956,2]
[387781392,1758853840929,-12971.65599646,0.00019956,2]
[387781393,1758853840939,-478.32931184,0.0001996,2]
[387781394,1758853840949,-270.29378608,0.00019964,2]
[387781395,1758853840959,-1540.13556374,0.00019968,2]
[387781396,1758853840971,-3240.69396084,0.0001997,2]
[387781397,1758853840980,-500.95028483,0.00019973,2]
[387781398,1758853840990,-501.8034503,0.00019973,2]
[387781399,1758853841000,-500.0,0.00019973,2]
[387781400,1758853841010,-500.0,0.00019973,2]
[387781401,1758853841019,-500.0,0.00019973,2]
[387781402,1758853841028,-501.77896181,0.00019973,2]
[387781403,1758853841038,-500.0,0.00019973,2]
[387781404,1758853841048,-500.39750398,0.00019973,2]
[387781405,1758853841057,-501.04488337,0.00019973,2]
[387781406,1758853841067,-500.94800064,0.00019973,2]
[387781407,1758853841077,-500.0,0.00019973,2]
[387781408,1758853841087,-163.74046144,0.00019975,2]
[387781409,1758853841096,-270.29378608,0.00019975,2]
[387781410,1758853841105,-1540.13556374,0.00019975,2]
[387781411,1758853841115,-540.59728004,0.00019977,2]
[387781412,1758853841125,-952.82137193,0.0001998,2]
[387781413,1758853841135,-346.58479116,0.0001998,2]
[387781414,1758853841145,-346.58479116,0.00019981,2]
[387781415,1758853841155,-478.32931184,0.00019981,2]
[387781416,1758853841166,-3240.69396084,0.00019981,2]
[387781417,1758853841177,-270.29378608,0.00019981,2]
[387781418,1758853841188,-14071.05802639,0.00019982,2]
[387781419,1758853841198,-14071.05802639,0.00019982,2]
[387781420,1758853841208,-346.58479116,0.00019987,2]
[387781421,1758853841218,-203.95499504,0.00019988,2]
[387781422,1758853841228,-151.0,0.00019988,2]
[387781423,1758853841238,-151.0,0.00019988,2]
[387781424,1758853841248,-151.0,0.00019988,2]
[387781425,1758853841257,-151.0,0.00019988,2]
[387781426,1758853841267,-151.0,0.00019988,2]
[387781427,1758853841276,-151.0,0.00019988,2]
[387781428,1758853841286,-151.0,0.00019988,2]
[387781429,1758853841296,-168.59527158,0.00019988,2]
[387781430,1758853841305,-151.0,0.00019988,2]
[387781431,1758853841315,-151.0,0.00019988,2]
[387781432,1758853841324,-151.0,0.00019988,2]
[387781433,1758853841337,-151.0,0.00019988,2]
[387781434,1758853841351,-151.0,0.00019988,2]
[387781435,1758853841366,-151.0,0.00019988,2]
[387781436,1758853841379,-151.0,0.00019988,2]
[387781437,1758853841390,-151.0,0.00019988,2]
[387781438,1758853841403,-165.11078088,0.00019988,2]
[387781439,1758853841417,-14338.38951042,0.00019989,2]
[387781440,1758853841431,-1013.24942253,0.00019989,2]
[387781441,1758853841446,-12971.65599646,0.0001999,2]
[387781442,1758853841460,-540.59728004,0.00019991,2]
[387781443,1758853841473,-628.755459,0.00019992,2]
[387781444,1758853841486,-346.58479116,0.00019995,2]
[387781445,1758853841498,-163.74046144,0.00019995,2]
[387781446,1758853841509,-151.0,0.00019997,2]
[387781447,1758853841520,-151.0,0.00019997,2]
[387781448,1758853841533,-478.32931184,0.00019998,2]
[387781449,1758853841546,-500.0,0.00019999,2]
[387781450,1758853841558,-384.37588815,0.00019999,2]
[387781451,1758853841571,-500.0,0.00019999,2]
[387781452,1758853841587,-500.0,0.00019999,2]
[387781453,1758853841602,-500.0,0.00019999,2]
[387781454,1758853841615,-500.0,0.00019999,2]
[387781455,1758853841629,-500.0,0.00019999,2]
[387781456,1758853841644,-500.0,0.00019999,2]
[387781457,1758853841657,-500.0,0.00019999,2]
[387781458,1758853841670,-500.0,0.00019999,2]
[387781459,1758853841684,-500.0,0.00019999,2]
[387781460,1758853841697,-500.0,0.00019999,2]
[387781461,1758853841709,-500.0,0.00019999,2]
[387781462,1758853841722,-500.0,0.00019999,2]
[387781463,1758853841735,-500.0,0.00019999,2]
[387781464,1758853841749,-500.0,0.00019999,2]
[387781465,1758853841762,-500.0,0.00019999,2]
[387781466,1758853841775,-500.0,0.00019999,2]
[387781467,1758853841787,-558.78761318,0.00019999,2]
[387781468,1758853841797,-500.0,0.00019999,2]
[387781469,1758853841808,-500.0,0.00019999,2]
[387781470,1758853841819,-500.0,0.00019999,2]
[387781471,1758853841833,-500.0,0.00019999,2]
[387781472,1758853841848,-500.0,0.00019999,2]
[387781473,1758853841859,-500.0,0.00019999,2]
[387781474,1758853841871,-500.0,0.00019999,2]
[387781475,1758853841882,-500.0,0.00019999,2]
[387781476,1758853841894,-500.0,0.00019999,2]
[387781477,1758853841908,-500.0,0.00019999,2]
[387781478,1758853841923,-500.0,0.00019999,2]
[387781479,1758853841937,-500.0,0.00019999,2]
[387781480,1758853841948,-500.0,0.00019999,2]
[387781481,1758853841959,-500.0,0.00019999,2]
[387781482,1758853841971,-500.0,0.00019999,2]
[387781483,1758853841983,-500.0,0.00019999,2]
[387781484,1758853841995,-500.0,0.00019999,2]
[387781485,1758853842008,-500.0,0.00019999,2]
[387781486,1758853842020,-500.0,0.00019999,2]
[387781487,1758853842032,-500.0,0.00019999,2]
[387781488,1758853842046,-500.0,0.00019999,2]
[387781489,1758853842058,-500.0,0.00019999,2]
[387781490,1758853842070,-500.0,0.00019999,2]
[387781491,1758853842082,-500.0,0.00019999,2]
[387781492,1758853842093,-500.0,0.00019999,2]
[387781493,1758853842104,-650.0,0.00019999,2]
[387781494,1758853842116,-500.0,0.00019999,2]
[387781495,1758853842141,-500.0,0.00019999,2]
[387781496,1758853842156,-500.0,0.00019999,2]
[387781497,1758853842171,-500.0,0.00019999,2]
[387781498,1758853842187,-1000.0,0.00019999,2]
[387781499,1758853842200,-150.0,0.00019999,2]
[387781500,1758853842213,-150.0,0.00019999,2]
[387781501,1758853842227,-150.0,0.00019999,2]
[387781502,1758853842240,-500.0,0.00019999,2]
[387781503,1758853842252,-500.0,0.00019999,2]
[387781504,1758853842265,-3630.0,0.00019999,2]
[387781505,1758853842277,-150.0,0.00019999,2]
[387781506,1758853842289,-500.0,0.00019999,2]
[387781507,1758853842301,-500.0,0.00019999,2]
[387781508,1758853842313,-151.42179005,0.00019999,2]
[387781509,1758853842326,-500.0,0.00019999,2]
[387781510,1758853842338,-150.0,0.00019999,2]
[387781511,1758853842351,-150.0,0.00019999,2]
[387781512,1758853842364,-155.735,0.00019999,2]
[387781513,1758853842376,-254.96365471,0.00019999,2]
[387781514,1758853842388,-153.02260752,0.00019999,2]
[387781515,1758853842400,-150.0,0.00019999,2]
[387781516,1758853842411,-500.0,0.00019999,2]
[387781517,1758853842424,-500.0,0.00019999,2]
[387781518,1758853842436,-158.06805117,0.00019999,2]
[387781519,1758853842448,-150.0,0.00019999,2]
[387781520,1758853842460,-150.0,0.00019999,2]
[387781521,1758853842475,-1000.0,0.00019999,2]
[387781522,1758853842487,-603.47151449,0.00019999,2]
[387781523,1758853842499,-17132.68176969,0.0002,2]
[387781524,1758853842516,-306260.74307372,0.0002,2]
[387781525,1758853842900,-517.95867663,0.0002,2]
[387781526,1758853842930,-445.30339811,0.0002,2]
[387781527,1758853842946,-325.42295744,0.0002,2]
[387781528,1758853842969,-60312.25094151,0.0002,2]
[387781541,1758853843554,-490.0,0.0002,2]
[387781542,1758853843567,-1734.08014104,0.0002,2]
[387781543,1758853843590,-343.42190025,0.0002,2]
[387781548,1758853846457,-1282.66302147,0.0002,2]
[387781550,1758853981597,-152.0,0.00018976,2]
[387781551,1758853983770,-31.91,0.00018976,2]
[387781560,1758854482309,162.33,9.533e-05,2]
[387781561,1758854482526,162.33,0.00011122,2]
[387781562,1758854482725,162.33,0.00012711,2]
[387781563,1758854482931,162.33,0.000143,2]
[387781564,1758854483136,162.33,0.00015889,2]
[387781565,1758854483350,162.33,0.00017478,2]
[387781571,1758854626921,-208.16505347,0.00018986,2]
[387781572,1758854630985,-165.72611917,0.00018986,2]
[387781573,1758854633113,-220.12983152,0.00018986,2]
[387781574,1758854634768,-180.90100416,0.00018986,2]
[387781575,1758854634795,-138.19799168,0.00018986,2]
[387781576,1758854655198,-400.0,0.00018986,2]
[387781577,1758854689279,-201.28125022,0.0001889,2]
[387781578,1758854693164,-18.84858078,0.0001889,2]
[387781579,1758854693186,-12.07,0.00018986,2]
[387781580,1758854711868,150.0,0.00018,2]
[387781581,1758854711908,150.0,0.00018222,2]
[387781582,1758854711982,150.0,0.00018444,2]
[387781583,1758854712426,-150.0,0.00018667,2]
[387781584,1758854712557,150.0,0.00018,2]
[387781585,1758854712613,150.0,0.00018095,2]
[387781586,1758854712679,150.0,0.0001819,2]
[387781587,1758854712750,150.0,0.00018286,2]
[387781588,1758854712823,150.0,0.00018381,2]
[387781589,1758854712893,150.0,0.00018476,2]
[387781590,1758854712970,150.0,0.00018571,2]
[387781591,1758854714136,150.0,0.00018,2]
[387781592,1758854714184,150.0,0.00018105,2]
[387781593,1758854714253,150.0,0.00018211,2]
[387781594,1758854714324,150.0,0.00018316,2]
[387781595,1758854714401,150.0,0.00018421,2]
[387781596,1758854714470,150.0,0.00018526,2]
[387781597,1758854714542,150.0,0.00018632,2]
[387781598,1758854716284,910.10161,0.0003013,120]
[387781599,1758854716682,-150.0,0.00018667,2]
[387781600,1758854716705,-52.32726448,0.00018737,2]
[387781601,1758854718790,150.0,0.00018,2]
[387781602,1758854718869,150.0,0.0001825,2]
[387781603,1758854718933,150.0,0.000185,2]
[387781604,1758854720873,-97.67273552,0.00018737,2]
[387781605,1758854720897,-69.78726448,0.0001875,2]
[387781606,1758854721630,150.0,0.00018,2]
[387781607,1758854721663,150.0,0.0001825,2]
[387781608,1758854721721,150.0,0.000185,2]
[387781609,1758854722261,-80.21273552,0.0001875,2]
[387781610,1758854722284,-78.15900236,0.0001875,2]
[387781611,1758854724283,-71.84099764,0.0001875,2]
[387781612,1758854724310,-90.83717239,0.00018762,2]
[387781613,1758854727322,-59.16282761,0.00018762,2]
[387781614,1758854727352,-150.0,0.00018842,2]
[387781615,1758854727381,-14.90577257,0.00018857,2]
[387781616,1758854728157,150.0,0.00018,2]
[387781617,1758854728213,150.0,0.000185,2]
[387781618,1758854728874,150.0,0.00018,2]
[387781619,1758854728921,150.0,0.00018,2]
[387781620,1758854728955,150.0,0.00018286,2]
[387781621,1758854728995,150.0,0.00018571,2]
[387781622,1758854730321,-135.09422743,0.00018857,2]
[387781623,1758854730345,-150.0,0.00018857,2]
[387781624,1758854730368,-13.66733032,0.00018889,2]
[387781625,1758854732290,-136.33266968,0.00018889,2]
[387781626,1758854732312,-19.9984842,0.00018947,2]
[387781627,1758854733160,150.0,0.00018,2]
[387781628,1758854734280,-130.0015158,0.00018947,2]
[387781629,1758854734304,-37.4584842,0.00018952,2]
[387781630,1758854737383,150.0,0.00018,2]
[387781631,1758854737453,150.0,0.000185,2]
[387781632,1758854738027,150.0,0.00018,2]
[387781633,1758854738096,75.96853112,0.00018333,2]
[387781634,1758854738119,74.03146888,0.00018333,2]
[387781635,1758854741087,150.0,0.00018,2]
[387781636,1758854741121,150.0,0.00018333,2]
[387781637,1758854741485,150.0,0.00018,2]
[387781638,1758854741590,150.0,0.00018167,2]
[387781639,1758854741621,150.0,0.00018333,2]
[387781640,1758854741677,150.0,0.000185,2]
[387781641,1758854760417,-150.0,0.00018667,2]
[387781642,1758854760439,-82.22596281,0.00018667,2]
[387781643,1758854762472,-67.77403719,0.00018667,2]
[387781644,1758854762494,-150.0,0.00018667,2]
[387781645,1758854762518,-47.68829278,0.00018833,2]
[387781646,1758854762672,1086.642405,0.00018573,2]
[387781647,1758854767179,-102.31170722,0.00018833,2]
[387781648,1758854767203,-61.46829278,0.00018952,2]
[387781649,1758854777495,-51.07322302,0.00018952,2]
[387781650,1758854777525,-97.85355396,0.00018999,2]
[387781651,1758854777566,-202.14644604,0.00018999,2]
[387781652,1758854792721,-150.0,0.00018727,7]
[387781653,1758854792743,-9.72269538,0.00019,2]
[387781654,1758854795259,-140.27730462,0.00019,2]
[387781655,1758854795288,-69.44539076,0.00019,2]
[387781656,1758854795322,-80.55460924,0.00019,2]
[387781657,1758854796260,-150.0,0.00019,2]
[387781658,1758854796283,-136.59782085,0.00019,2]
[387781659,1758854801461,-13.40217915,0.00019,2]
[387781660,1758854801485,-150.0,0.00019,2]
[387781661,1758854801508,-150.0,0.00019,2]
[387781662,1758854801529,-109.38876581,0.00019,2]
[387781663,1758854804004,-40.61123419,0.00019,2]